bitfinex-derivatives/quotes_BTCF0:USTF0_20250922
["timestamp","ask_amount","ask_price","bid_price","bid_amount"]
[1758500826224,1.42488258,115280.0,115270.0,0.03481]
[1758500826528,1.42488258,115280.0,115270.0,0.0134]
[1758500827427,1.42488258,115280.0,115270.0,0.03481]
[1758500827428,1.21061548,115280.0,115270.0,0.03481]
[1758500827628,1.42488258,115280.0,115270.0,0.03481]
[1758500828132,1.42488258,115280.0,115270.0,0.0134]
[1758500828422,1.44767002,115280.0,115270.0,0.013]
[1758500828624,1.69767002,115280.0,115270.0,0.0134]
[1758500829226,1.69767002,115280.0,115270.0,0.013]
[1758500829428,1.69767002,115280.0,115270.0,0.0134]
[1758500830429,1.72884165,115280.0,115270.0,0.0134]
[1758500832332,1.7755991,115280.0,115270.0,0.0134]
[1758500832531,1.7742791,115280.0,115270.0,0.0134]
[1758500833322,1.74310747,115280.0,115270.0,0.0134]
[1758500834035,0.93122747,115280.0,115270.0,0.0134]
[1758500834333,1.69623002,115280.0,115270.0,0.0134]
[1758500834736,1.74295783,115280.0,115270.0,0.0134]
[1758500835437,1.69623002,115280.0,115270.0,0.013]
[1758500835634,1.75856657,115280.0,115270.0,0.0134]
[1758500836134,0.02846,115270.0,115260.0,0.0001]
[1758500836331,0.00578,115260.0,115250.0,0.0009]
[1758500836637,1.4454146,115260.0,115240.0,0.1009099]
[1758500836933,0.38286,115250.0,115240.0,0.1221299]
[1758500837134,0.40564744,115250.0,115240.0,0.1220299]
[1758500837331,0.39864744,115250.0,115240.0,0.1220299]
[1758500837729,0.46947677,115250.0,115240.0,0.1220299]
[1758500838123,1.28067677,115250.0,115240.0,0.1300299]
[1758500838331,1.28167677,115250.0,115240.0,0.1300299]
[1758500838627,0.47047677,115250.0,115240.0,0.1300299]
[1758500838833,1.27255677,115250.0,115240.0,0.1300299]
[1758500839437,1.27555677,115250.0,115240.0,0.1380299]
[1758500839838,1.27527677,115250.0,115240.0,0.1380299]
[1758500841938,1.27527677,115250.0,115240.0,0.1372299]
[1758500842242,1.27491677,115250.0,115240.0,0.1376299]
[1758500842932,1.27491677,115250.0,115240.0,0.351897]
[1758500843531,1.27491677,115250.0,115240.0,0.1376299]
[1758500843733,0.46447677,115250.0,115240.0,0.1376299]
[1758500843930,1.27467677,115250.0,115240.0,0.1376299]
[1758500844338,1.27467677,115250.0,115240.0,0.351897]
[1758500845144,0.46447677,115250.0,115240.0,0.351897]
[1758500845440,1.27467677,115250.0,115240.0,0.351897]
[1758500848444,1.27467677,115250.0,115240.0,0.1376299]
[1758500848643,1.48940416,115250.0,115240.0,0.35235729]
[1758500849048,1.48940416,115250.0,115240.0,0.1376299]
[1758500849243,1.48940416,115250.0,115240.0,0.56708468]
[1758500852048,1.27467677,115250.0,115240.0,0.56708468]
[1758500852249,1.48940416,115250.0,115240.0,0.56708468]
[1758500854052,1.48940416,115250.0,115240.0,0.1376299]
[1758500854258,1.48940416,115250.0,115240.0,0.56708468]
[1758500854662,1.27467677,115250.0,115240.0,0.56708468]
[1758500854859,0.67920416,115250.0,115240.0,0.56708468]
[1758500855061,1.27467677,115250.0,115240.0,0.56708468]
[1758500855258,1.27467677,115250.0,115240.0,0.35235729]
[1758500855560,1.27467677,115250.0,115240.0,0.1376305]
[1758500855763,1.48940416,115250.0,115240.0,0.35235789]
[1758500857368,1.46661672,115250.0,115240.0,0.35235789]
[1758500857562,1.48891807,115250.0,115240.0,0.35235789]
[1758500857762,1.46661672,115250.0,115240.0,0.35235789]
[1758500858162,0.92939735,115250.0,115240.0,0.35235789]
[1758500858363,1.12181672,115250.0,115240.0,0.35235789]
[1758500859071,0.90708933,115250.0,115240.0,0.35235789]
[1758500859370,1.12181672,115250.0,115240.0,0.56708528]
[1758500859563,1.12181672,115250.0,115240.0,0.35235789]
[1758500860267,1.12181672,115250.0,115240.0,0.56708528]
[1758500860468,1.12181672,115250.0,115240.0,0.35235789]
[1758500860669,0.90708933,115250.0,115240.0,0.35235789]
[1758500860873,0.09688933,115250.0,115240.0,0.56708528]
[1758500861062,0.90704933,115250.0,115240.0,0.1376305]
[1758500861262,0.90704933,115250.0,115240.0,0.56708528]
[1758500861463,0.90704933,115250.0,115240.0,0.35235789]
[1758500861864,1.12177672,115250.0,115240.0,0.56708528]
[1758500862871,1.12177672,115250.0,115240.0,0.1376305]
[1758500863369,0.90704933,115250.0,115240.0,0.56708528]
[1758500863673,1.12177672,115250.0,115240.0,0.56708528]
[1758500864173,0.87856908,115250.0,115240.0,0.56708528]
[1758500864370,1.09329647,115250.0,115240.0,0.56708528]
[1758500866171,1.09329647,115250.0,115240.0,0.1376305]
[1758500866363,1.09329647,115250.0,115240.0,0.35235789]
[1758500868074,1.09329647,115250.0,115240.0,0.1376305]
[1758500868273,1.09329647,115250.0,115240.0,0.35235789]
[1758500869177,1.09329647,115250.0,115240.0,0.1376305]
[1758500869373,1.09329647,115250.0,115240.0,0.35235789]
[1758500870379,1.09329647,115250.0,115240.0,0.1376305]
[1758500870674,1.09329647,115250.0,115240.0,0.35235789]
[1758500871069,0.06840908,115250.0,115240.0,0.71315789]
[1758500871375,0.87852908,115250.0,115240.0,0.92788528]
[1758500871571,0.81412,115250.0,115240.0,1.17788528]
[1758500871874,0.004,115250.0,115240.0,1.25569673]
[1758500874773,0.004,115250.0,115240.0,0.57624195]
[1758500874979,0.07361543,115250.0,115240.0,0.92788528]
[1758500875180,0.07361543,115250.0,115240.0,0.71315789]
[1758500875181,0.21872739,115250.0,115240.0,0.71315789]
[1758500875380,0.21872739,115250.0,115240.0,0.71275789]
[1758500875681,0.21872739,115250.0,115240.0,0.71315789]
[1758500876475,0.21872739,115250.0,115240.0,0.71275789]
[1758500876681,0.21872739,115250.0,115240.0,0.71315789]
[1758500877184,0.21872739,115250.0,115240.0,0.4984305]
[1758500877383,0.21872739,115250.0,115240.0,0.71315789]
[1758500877581,0.21872739,115250.0,115240.0,0.05091]
[1758500877877,0.21872739,115250.0,115240.0,0.26523739]
[1758500878072,0.21872739,115250.0,115240.0,0.26563739]
[1758500878878,0.21872739,115250.0,115240.0,0.05091]
[1758500879079,0.28688614,115250.0,115240.0,0.26563739]
[1758500879278,0.64768614,115250.0,115240.0,0.05091]
[1758500879479,0.66781145,115250.0,115240.0,0.02929]
[1758500879780,0.66781145,115250.0,115240.0,0.02969]
[1758500879977,0.66781145,115250.0,115240.0,0.02929]
[1758500880377,0.66781145,115250.0,115240.0,0.05251]
[1758500880583,0.66781145,115250.0,115240.0,0.05291]
[1758500881388,0.91781145,115250.0,115240.0,0.02969]
[1758500881786,0.91781145,115250.0,115240.0,0.02929]
[1758500882079,0.91381145,115250.0,115240.0,0.02969]
[1758500882276,0.88932954,115250.0,115240.0,0.02929]
[1758500882476,0.88932954,115250.0,115240.0,0.02969]
[1758500882681,0.88932954,115250.0,115240.0,0.0164]
[1758500883784,1.12709793,115250.0,115240.0,0.0164]
[1758500883984,1.12709793,115250.0,115240.0,0.016]
[1758500884283,1.12709793,115250.0,115240.0,0.0164]
[1758500885284,1.93705793,115250.0,115240.0,0.0164]
[1758500885483,1.12709793,115250.0,115240.0,0.016]
[1758500885687,1.12709793,115250.0,115240.0,0.0164]
[1758500885883,1.93705793,115250.0,115240.0,0.0164]
[1758500886387,1.12709793,115250.0,115240.0,0.0164]
[1758500886582,1.93705793,115250.0,115240.0,0.0164]
[1758500887089,0.69764315,115250.0,115240.0,0.0164]
[1758500887389,1.93705793,115250.0,115240.0,0.0164]
[1758500887882,2.08115793,115250.0,115240.0,0.0164]
[1758500888083,1.93705793,115250.0,115240.0,0.0164]
[1758500889182,1.12709793,115250.0,115240.0,0.0164]
[1758500889586,1.93705793,115250.0,115240.0,0.0164]
[1758500890283,0.69764315,115250.0,115240.0,0.0164]
[1758500890485,1.47233054,115250.0,115240.0,0.05189]
[1758500890691,0.44764315,115250.0,115240.0,0.05189]
[1758500890887,0.66237054,115250.0,115240.0,0.26661739]
[1758500891287,1.47233054,115250.0,115240.0,0.05189]
[1758500891489,1.44928954,115250.0,115240.0,0.05189]
[1758500892091,1.23456215,115250.0,115240.0,0.05189]
[1758500892291,1.44928954,115250.0,115240.0,0.05189]
[1758500893392,0.63932954,115250.0,115240.0,0.05189]
[1758500893594,1.44928954,115250.0,115240.0,0.35333769]
[1758500894092,1.44928954,115250.0,115240.0,0.26661739]
[1758500894298,1.44924954,115250.0,115240.0,0.05189]
[1758500894486,1.44924954,115250.0,115240.0,0.26661739]
[1758500894688,1.44924954,115250.0,115240.0,0.05189]
[1758500894999,1.44924954,115250.0,115240.0,0.26661739]
[1758500895689,0.63932954,115250.0,115240.0,0.35333769]
[1758500895890,1.44924954,115250.0,115240.0,0.35333769]
[1758500896392,1.44924954,115250.0,115240.0,0.1386103]
[1758500896588,1.44924954,115250.0,115240.0,0.35333769]
[1758500897996,1.44924954,115250.0,115240.0,0.05189]
[1758500898397,1.44924954,115250.0,115240.0,0.35333769]
[1758500898893,1.44920954,115250.0,115240.0,0.35333769]
[1758500899491,1.44920954,115250.0,115240.0,0.26661739]
[1758500899694,1.44920954,115250.0,115240.0,0.05189]
[1758500899890,1.44920954,115250.0,115240.0,0.26661739]
[1758500900593,1.44920954,115250.0,115240.0,0.05189]
[1758500900785,1.23448215,115250.0,115240.0,0.26661739]
[1758500900992,1.44920954,115250.0,115240.0,0.05189]
[1758500901292,1.44920954,115250.0,115240.0,0.81805668]
[1758500901293,0.06380215,115250.0,115240.0,0.81805668]
[1758500901488,0.87364215,115250.0,115240.0,0.3886019]
[1758500901799,0.82996531,115250.0,115240.0,1.17885668]
[1758500902102,0.02012531,115250.0,115240.0,1.17885668]
[1758500902292,0.82992531,115250.0,115240.0,1.17885668]
[1758500906504,0.82984531,115250.0,115240.0,0.7494019]
[1758500906703,0.82984531,115250.0,115240.0,1.17885668]
[1758500908605,0.82984531,115250.0,115240.0,0.9641068]
[1758500909403,0.82984531,115250.0,115240.0,0.7494019]
[1758500909610,0.82984531,115250.0,115240.0,0.9641068]
[1758500910512,0.82984531,115250.0,115240.0,0.9637068]
[1758500910713,0.82984531,115250.0,115240.0,0.9641068]
[1758500911622,0.02012531,115250.0,115240.0,0.9641068]
[1758500911818,0.02012531,115250.0,115240.0,1.7737068]
[1758500912018,1.1704,115270.0,115260.0,0.1214173]
[1758500912222,0.8096,115270.0,115260.0,0.3361222]
[1758500913519,1.17036,115280.0,115270.0,0.1214098]
[1758500913715,0.80956,115280.0,115270.0,0.3361147]
[1758500914217,0.80956,115280.0,115270.0,0.1214098]
[1758500914417,0.80956,115280.0,115270.0,0.3361147]
[1758500914818,0.81656,115280.0,115270.0,0.3391147]
[1758500915315,0.81756,115280.0,115270.0,0.6999147]
[1758500916424,0.81756,115280.0,115270.0,0.4852098]
[1758500916622,0.81756,115280.0,115270.0,0.6999147]
[1758500917122,0.81756,115280.0,115270.0,0.6999146]
[1758500918623,0.81756,115280.0,115270.0,0.3391146]
[1758500918826,1.0322649,115280.0,115270.0,0.03772]
[1758500919021,1.0322649,115280.0,115270.0,0.03812]
[1758500919423,0.81756,115280.0,115270.0,0.03812]
[1758500919925,0.81756,115280.0,115270.0,0.1248097]
[1758500921527,1.0322649,115280.0,115270.0,0.1248097]
[1758500921729,0.81756,115280.0,115270.0,0.1248097]
[1758500921920,1.0322649,115280.0,115270.0,0.1248097]
[1758500922121,0.81756,115280.0,115270.0,0.1248097]
[1758500922318,0.81756,115280.0,115270.0,0.3395146]
[1758500922932,0.81756,115280.0,115270.0,0.1248097]
[1758500923321,0.81756,115280.0,115270.0,0.1248098]
[1758500924435,0.83745554,115280.0,115270.0,0.1248098]
[1758500924729,1.05216044,115280.0,115270.0,0.1248098]
[1758500925825,1.05216044,115280.0,115270.0,0.03812]
[1758500926128,0.83745554,115280.0,115270.0,0.0034]
[1758500926322,1.66296044,115280.0,115270.0,0.0034]
[1758500926633,1.66296044,115280.0,115270.0,0.01614]
[1758500926831,1.44825554,115280.0,115270.0,0.03812]
[1758500927030,1.66296044,115280.0,115270.0,0.03812]
[1758500928023,1.66296044,115280.0,115270.0,0.01614]
[1758500928631,1.66296044,115280.0,115270.0,0.03812]
[1758500931030,1.66252044,115280.0,115270.0,0.03812]
[1758500932931,1.66252044,115280.0,115270.0,0.1248101]
[1758500933437,0.63869554,115280.0,115270.0,0.1248101]
[1758500933627,0.85340044,115280.0,115270.0,0.1248101]
[1758500933931,1.66248044,115280.0,115270.0,0.1248101]
[1758500935830,1.66248044,115280.0,115270.0,0.01614]
[1758500936037,1.66248044,115280.0,115270.0,0.03832]
[1758500936639,1.80658044,115280.0,115270.0,0.03832]
[1758500938437,1.80658044,115280.0,115270.0,0.1250101]
[1758500938835,1.59187554,115280.0,115270.0,0.1250101]
[1758500939141,1.80646044,115280.0,115270.0,0.1250101]
[1758500939437,1.82956956,115280.0,115270.0,0.1250101]
[1758500939741,1.82956956,115280.0,115270.0,0.339715]
[1758500940536,1.61486466,115280.0,115270.0,0.339715]
[1758500940934,0.66180466,115280.0,115270.0,0.339715]
[1758500941142,0.83681554,115280.0,115270.0,0.700515]
[1758500941938,0.83681554,115280.0,115270.0,0.4858101]
[1758500942329,0.83681554,115280.0,115270.0,0.700515]
[1758500942937,0.83681554,115280.0,115270.0,0.339715]
[1758500943333,0.85987037,115280.0,115270.0,0.339715]
[1758500943738,0.85987037,115280.0,115270.0,0.03832]
[1758500943942,1.43537527,115280.0,115270.0,0.03832]
[1758500946141,1.22067037,115280.0,115270.0,0.03832]
[1758500946341,1.41232044,115280.0,115270.0,0.03832]
[1758500958447,1.19761554,115280.0,115270.0,0.03832]
[1758500958745,1.41232044,115280.0,115270.0,0.03832]
[1758500962050,1.55642044,115280.0,115270.0,0.03832]
[1758500962257,1.41232044,115280.0,115270.0,0.03832]
[1758500962956,1.19761554,115280.0,115270.0,0.03832]
[1758500963351,1.41232044,115280.0,115270.0,0.03832]
[1758500963958,1.43538517,115280.0,115270.0,0.03832]
[1758500964358,1.43538517,115280.0,115270.0,0.03792]
[1758500964656,1.43538517,115280.0,115270.0,0.03832]
[1758500966861,1.43538517,115280.0,115270.0,0.0034]
[1758500967454,1.22068027,115280.0,115270.0,0.003]
[1758500967655,1.43538517,115280.0,115270.0,0.0034]
[1758500968662,0.62646517,115280.0,115270.0,0.0034]
[1758500968856,1.43470517,115280.0,115270.0,0.0034]
[1758500969361,1.22000027,115280.0,115270.0,0.0034]
[1758500969563,1.43470517,115280.0,115270.0,0.0034]
[1758500969764,0.41176027,115280.0,115270.0,0.0034]
[1758500970060,1.21996027,115280.0,115270.0,0.03882]
[1758500970259,1.43466517,115280.0,115270.0,0.03882]
[1758500970560,1.64924739,115280.0,115270.0,0.25346356]
[1758500971863,1.64924739,115280.0,115270.0,0.03882]
[1758500972961,1.64924739,115280.0,115270.0,0.01697]
[1758500974064,1.64924739,115280.0,115270.0,0.03882]
[1758500974562,1.64924739,115280.0,115270.0,0.01697]
[1758500975460,1.21996027,115280.0,115270.0,0.01697]
[1758500975662,1.64924739,115280.0,115270.0,0.01697]
[1758500975964,1.21988027,115280.0,115270.0,0.03882]
[1758500976156,1.64916739,115280.0,115270.0,0.01697]
[1758500976354,1.62610266,115280.0,115270.0,0.01697]
[1758500977459,1.64955373,115280.0,115270.0,0.0034]
[1758500981461,1.64955373,115280.0,115270.0,0.003]
[1758500981771,1.79365373,115280.0,115270.0,0.003]
[1758500982067,1.64955373,115280.0,115270.0,0.0034]
[1758500983771,1.64935373,115280.0,115270.0,0.0034]
[1758500984067,0.84143373,115280.0,115270.0,0.0034]
[1758500984269,1.64935373,115280.0,115270.0,0.0034]
[1758500985168,1.22006661,115280.0,115270.0,0.01697]
[1758500985367,1.64935373,115280.0,115270.0,0.01697]
[1758500985771,1.22006661,115280.0,115270.0,0.01697]
[1758500985968,1.64935373,115280.0,115270.0,0.01697]
[1758500986275,1.64927373,115280.0,115270.0,0.01697]
[1758500986770,1.64927373,115280.0,115270.0,0.0034]
[1758500988570,0.84143373,115280.0,115270.0,0.0034]
[1758500988770,1.21994661,115280.0,115270.0,0.03882]
[1758500988971,1.64923373,115280.0,115270.0,0.0034]
[1758500989168,1.64923373,115280.0,115270.0,0.01697]
[1758500989772,1.64923373,115280.0,115270.0,0.03882]
[1758500989972,1.64923373,115280.0,115270.0,0.01697]
[1758500990173,1.64923373,115280.0,115270.0,0.0034]
[1758500991971,1.79333373,115280.0,115270.0,0.0034]
[1758500997780,1.79313373,115280.0,115270.0,0.01735]
[1758500999880,1.79311718,115280.0,115270.0,0.01735]
[1758501000382,1.79311718,115280.0,115270.0,0.0034]
[1758501000772,2.25776074,115280.0,115270.0,0.0034]
[1758501000983,2.28890824,115280.0,115270.0,0.003]
[1758501001183,2.28890824,115280.0,115270.0,0.0034]
[1758501001981,2.28890824,115280.0,115260.0,0.0001]
[1758501002179,0.79008712,115270.0,115260.0,0.0001]
[1758501002384,0.81352164,115270.0,115250.0,0.03468]
[1758501002685,1.59760712,115260.0,115250.0,0.03468]
[1758501002883,1.19175452,115260.0,115250.0,0.03458]
[1758501003071,1.62104164,115260.0,115250.0,0.03458]
[1758501003385,1.62104164,115260.0,115250.0,0.01274]
[1758501003576,1.62104164,115260.0,115250.0,0.01314]
[1758501003984,1.62204164,115260.0,115250.0,0.01714]
[1758501004482,1.62504164,115260.0,115250.0,0.01714]
[1758501005085,1.62504164,115260.0,115250.0,0.0044]
[1758501005486,1.62504164,115260.0,115250.0,0.004]
[1758501006082,1.62504164,115260.0,115250.0,0.0044]
[1758501006379,1.62504164,115260.0,115250.0,0.004]
[1758501006780,1.62504164,115260.0,115250.0,0.0044]
[1758501006985,1.62504164,115260.0,115250.0,0.004]
[1758501007385,1.62504164,115260.0,115250.0,0.0044]
[1758501008089,1.06752164,115260.0,115250.0,0.0044]
[1758501008486,1.90606914,115260.0,115250.0,0.004]
[1758501008688,1.90606914,115260.0,115250.0,0.0044]
[1758501010179,0.66938202,115260.0,115250.0,0.0044]
[1758501010388,0.63823452,115260.0,115250.0,0.0044]
[1758501010690,1.06752164,115260.0,115250.0,0.0044]
[1758501010889,1.87488164,115260.0,115250.0,0.0044]
[1758501011690,0.63823452,115260.0,115250.0,0.0044]
[1758501011892,1.87488164,115260.0,115250.0,0.0044]
[1758501012295,1.06752164,115260.0,115250.0,0.0044]
[1758501012893,1.87488164,115260.0,115250.0,0.0044]
[1758501013086,1.44559452,115260.0,115250.0,0.0044]
[1758501013288,1.06752164,115260.0,115250.0,0.0044]
[1758501013495,1.87488164,115260.0,115250.0,0.0044]
[1758501014300,1.62484164,115260.0,115250.0,0.0044]
[1758501014486,1.62484164,115260.0,115250.0,0.004]
[1758501014688,1.62484164,115260.0,115250.0,0.0044]
[1758501016397,0.81752164,115260.0,115250.0,0.0044]
[1758501016598,1.76898164,115260.0,115250.0,0.0044]
[1758501016796,0.96162164,115260.0,115250.0,0.0044]
[1758501017098,1.76894164,115260.0,115250.0,0.0044]
[1758501019793,1.76890164,115260.0,115250.0,0.0044]
[1758501020194,1.33961452,115260.0,115250.0,0.0396]
[1758501020394,1.33961452,115260.0,115250.0,0.01821]
[1758501020395,1.76890164,115260.0,115250.0,0.01821]
[1758501020791,1.76890164,115260.0,115250.0,0.0044]
[1758501020998,1.84676618,115260.0,115250.0,0.0044]
[1758501021398,1.81561868,115260.0,115250.0,0.0044]
[1758501021802,1.38633156,115260.0,115250.0,0.0044]
[1758501022103,1.81561868,115260.0,115250.0,0.0044]
[1758501025401,0.42928712,115250.0,115240.0,0.0001]
[1758501025611,0.42928712,115250.0,115230.0,0.0009]
[1758501025612,0.96063069,115250.0,115230.0,0.0009]
[1758501025805,0.39191647,115240.0,115230.0,0.0009]
[1758501026004,1.22259099,115240.0,115220.0,0.03569]
[1758501026203,0.3608,115230.0,115220.0,0.03649]
[1758501026393,0.38423452,115230.0,115220.0,0.28559]
[1758501026592,0.37723452,115230.0,115220.0,0.01399]
[1758501026792,1.40867808,115230.0,115220.0,0.03559]
[1758501026997,0.37723452,115230.0,115220.0,0.25063356]
[1758501027203,0.37723452,115230.0,115220.0,0.05059]
[1758501027204,1.19427452,115230.0,115220.0,0.05059]
[1758501027408,1.19427452,115230.0,115220.0,0.05099]
[1758501027794,1.20282006,115230.0,115220.0,0.03491]
[1758501027998,1.25802308,115230.0,115220.0,0.01504]
[1758501028296,1.52766368,115230.0,115220.0,0.02831]
[1758501028502,1.52766368,115230.0,115220.0,0.02791]
[1758501028706,1.48094664,115230.0,115220.0,0.02831]
[1758501028910,1.74230724,115230.0,115220.0,0.02831]
[1758501029099,1.31302012,115230.0,115220.0,0.04991]
[1758501029298,1.31302012,115230.0,115220.0,0.01544]
[1758501029299,1.52766368,115230.0,115220.0,0.01544]
[1758501029601,1.74278724,115230.0,115220.0,0.01544]
[1758501029908,1.53222368,115230.0,115220.0,0.01504]
[1758501030096,1.53222368,115230.0,115220.0,0.01544]
[1758501030493,1.53210368,115230.0,115220.0,0.02831]
[1758501030904,1.53234368,115230.0,115220.0,0.04991]
[1758501031105,1.23986661,115230.0,115220.0,0.04991]
[1758501031305,0.62551017,115230.0,115220.0,0.04991]
[1758501031505,1.45439017,115230.0,115220.0,0.04991]
[1758501031902,1.23974661,115230.0,115220.0,0.26455356]
[1758501032305,1.45439017,115230.0,115220.0,0.04991]
[1758501032505,1.23974661,115230.0,115220.0,0.04991]
[1758501032995,1.45457908,115230.0,115220.0,0.04991]
[1758501034208,1.45457908,115230.0,115220.0,0.136638]
[1758501034209,0.41086661,115230.0,115220.0,0.136638]
[1758501034409,0.41086661,115230.0,115220.0,0.60147047]
[1758501034795,0.86151209,115230.0,115220.0,0.60147047]
[1758501035000,0.03363209,115230.0,115220.0,0.96227047]
[1758501035201,0.86151209,115230.0,115220.0,0.747438]
[1758501035508,0.86151209,115230.0,115220.0,0.96227047]
[1758501039207,0.86151209,115230.0,115220.0,0.747438]
[1758501039402,0.86151209,115230.0,115220.0,0.71227047]
[1758501041112,0.86151209,115230.0,115220.0,0.497438]
[1758501041314,0.86151209,115230.0,115220.0,0.26474247]
[1758501041613,0.86151209,115230.0,115220.0,0.35147047]
[1758501042706,0.86151209,115230.0,115220.0,0.136638]
[1758501043214,0.86151209,115230.0,115220.0,0.35147047]
[1758501043413,0.86151209,115230.0,115220.0,0.35107047]
[1758501043614,0.86151209,115230.0,115220.0,0.35147047]
[1758501044002,0.86151209,115230.0,115220.0,0.136638]
[1758501044517,0.86151209,115230.0,115220.0,0.136238]
[1758501044809,0.86151209,115230.0,115220.0,0.136638]
[1758501045009,0.86151209,115230.0,115220.0,0.02831]
[1758501045203,1.71076197,115230.0,115220.0,0.01544]
[1758501045404,1.71076197,115230.0,115220.0,0.01504]
[1758501045608,1.4959295,115230.0,115220.0,0.04991]
[1758501046113,1.4998495,115230.0,115220.0,0.136638]
[1758501047307,1.4998495,115230.0,115220.0,0.35147047]
[1758501047915,1.1390495,115230.0,115220.0,0.35147047]
[1758501049113,0.3072495,115230.0,115220.0,0.35147047]
[1758501049415,1.1394495,115230.0,115220.0,0.35147047]
[1758501050117,1.1394495,115230.0,115220.0,0.136638]
[1758501050409,1.11583209,115230.0,115220.0,0.35147047]
[1758501050915,0.28363209,115230.0,115220.0,0.35147047]
[1758501051117,1.11531209,115230.0,115220.0,0.35147047]
[1758501051317,0.28363209,115230.0,115220.0,0.35147047]
[1758501051509,1.11463209,115230.0,115220.0,0.35147047]
[1758501053818,1.11463209,115230.0,115220.0,0.136638]
[1758501054018,1.11463209,115230.0,115220.0,0.35147047]
[1758501055112,0.28363209,115230.0,115220.0,0.35147047]
[1758501055312,0.86339209,115230.0,115220.0,0.35147047]
[1758501057820,0.86339209,115230.0,115220.0,0.136638]
[1758501058023,0.86339209,115230.0,115220.0,0.35147047]
[1758501058323,0.03363209,115230.0,115220.0,0.35147047]
[1758501058518,0.86255209,115230.0,115220.0,0.35147047]
[1758501059021,0.86255209,115230.0,115220.0,0.136638]
[1758501059322,0.86255209,115230.0,115220.0,0.35147047]
[1758501059925,0.03363209,115230.0,115220.0,0.35147047]
[1758501060224,0.86203209,115230.0,115220.0,0.136638]
[1758501060422,0.86203209,115230.0,115220.0,0.35147047]
[1758501060920,0.86203209,115230.0,115220.0,0.136638]
[1758501061118,0.88565907,115230.0,115220.0,0.136638]
[1758501061426,0.88565907,115230.0,115220.0,0.35147047]
[1758501062828,0.05725907,115230.0,115220.0,0.35147047]
[1758501063131,0.88533907,115230.0,115220.0,0.35147047]
[1758501063626,0.05725907,115230.0,115220.0,0.35147047]
[1758501063818,0.88709907,115230.0,115220.0,0.71227047]
[1758501064019,0.86701252,115230.0,115220.0,0.71227047]
[1758501064526,0.86701252,115230.0,115220.0,0.497438]
[1758501064728,0.86701252,115230.0,115220.0,0.71227047]
[1758501066828,0.86701252,115230.0,115220.0,0.497438]
[1758501067126,0.86701252,115230.0,115220.0,0.136638]
[1758501067326,0.86701252,115230.0,115220.0,0.35147047]
[1758501067521,0.86701252,115230.0,115220.0,0.35107047]
[1758501067723,0.86701252,115230.0,115220.0,0.35147047]
[1758501069029,0.8670129,115230.0,115220.0,0.35147047]
[1758501070428,0.8670129,115230.0,115220.0,0.136638]
[1758501070623,0.8670129,115230.0,115220.0,0.35147047]
[1758501071131,0.84338554,115230.0,115220.0,0.35147047]
[1758501072826,0.01354554,115230.0,115220.0,0.35147047]
[1758501073029,0.84102554,115230.0,115220.0,0.71227047]
[1758501074126,0.01354554,115230.0,115220.0,0.71227047]
[1758501074734,0.01354554,115230.0,115220.0,0.497438]
[1758501074939,0.01354554,115230.0,115220.0,0.71227047]
[1758501075327,0.43007554,115250.0,115240.0,0.1216729]
[1758501075531,0.09291053,115250.0,115240.0,0.69730537]
[1758501075734,0.89667554,115250.0,115240.0,0.69730537]
[1758501076327,0.38138485,115260.0,115250.0,0.0867054]
[1758501076527,0.87129272,115260.0,115250.0,0.69729787]
[1758501077328,0.84766485,115260.0,115250.0,0.69729787]
[1758501077529,0.84766485,115260.0,115250.0,0.39576]
[1758501077734,1.23207996,115260.0,115250.0,0.03496]
[1758501077934,1.23807996,115260.0,115250.0,0.03796]
[1758501078138,1.23907996,115260.0,115250.0,0.03796]
[1758501078338,1.23907248,115260.0,115250.0,0.1246657]
[1758501079338,1.21546485,115260.0,115250.0,0.1246657]
[1758501080139,1.22416627,115260.0,115250.0,0.1246657]
[1758501081039,1.24776361,115260.0,115250.0,0.1246657]
[1758501081438,1.24776361,115260.0,115250.0,0.33949817]
[1758501081840,0.88696361,115260.0,115250.0,0.33949817]
[1758501082235,1.24776361,115260.0,115250.0,0.33949817]
[1758501083339,1.24776361,115260.0,115250.0,0.1246657]
[1758501084243,1.46259608,115260.0,115250.0,0.1246657]
[1758501084543,1.46259608,115260.0,115250.0,0.03836]
[1758501084936,1.71259608,115260.0,115250.0,0.003]
[1758501085649,1.71259608,115260.0,115250.0,0.0034]
[1758501085841,1.71259608,115260.0,115250.0,0.003]
[1758501086040,1.71259608,115260.0,115250.0,0.0034]
[1758501086249,1.71259608,115260.0,115250.0,0.003]
[1758501086544,1.71259608,115260.0,115250.0,0.0034]
[1758501086744,1.71259608,115260.0,115250.0,0.003]
[1758501086943,1.71259608,115260.0,115250.0,0.0034]
[1758501087944,1.71259608,115260.0,115250.0,0.003]
[1758501088139,1.70995608,115260.0,115250.0,0.0034]
[1758501089848,1.70995608,115260.0,115250.0,0.003]
[1758501090036,1.70995608,115260.0,115250.0,0.0034]
[1758501090241,0.88551608,115260.0,115250.0,0.0034]
[1758501090545,1.71047608,115260.0,115250.0,0.0034]
[1758501090738,1.71023608,115260.0,115250.0,0.003]
[1758501091145,1.71023608,115260.0,115250.0,0.0034]
[1758501092049,0.88551608,115260.0,115250.0,0.0034]
[1758501092249,1.71023608,115260.0,115250.0,0.0034]
[1758501092547,1.92454855,115260.0,115250.0,0.0034]
[1758501092845,2.11536559,115260.0,115230.0,0.0005]
[1758501093049,0.93643247,115240.0,115220.0,0.01291]
[1758501093347,1.18484,115230.0,115220.0,0.03574]
[1758501093545,1.20843734,115230.0,115220.0,0.03574]
[1758501094143,1.20143734,115230.0,115220.0,0.03574]
[1758501094544,0.37739734,115230.0,115220.0,0.26156137]
[1758501094748,1.41973871,115230.0,115220.0,0.26156137]
[1758501095045,1.42073871,115230.0,115220.0,0.26156137]
[1758501095348,0.59721871,115230.0,115220.0,0.04674]
[1758501095648,0.81204008,115230.0,115220.0,0.01104]
[1758501095843,1.06204008,115230.0,115220.0,0.01104]
[1758501096048,0.84721871,115230.0,115220.0,0.01104]
[1758501096346,1.67085871,115230.0,115220.0,0.01144]
[1758501096552,0.84721871,115230.0,115220.0,0.01144]
[1758501096747,0.63239734,115230.0,115220.0,0.01144]
[1758501096942,1.67053871,115230.0,115220.0,0.01144]
[1758501097143,1.67053871,115230.0,115220.0,0.02444]
[1758501097450,1.42053871,115230.0,115220.0,0.04727]
[1758501097747,1.42073871,115230.0,115220.0,0.133998]
[1758501098252,1.49066449,115230.0,115220.0,0.133998]
[1758501098449,1.49066449,115230.0,115220.0,0.04727]
[1758501098450,1.27584312,115230.0,115220.0,0.04727]
[1758501098643,1.49066449,115230.0,115220.0,0.133998]